fUSD/lending_fUSD_20250824
["ID","MTS","AMOUNT","RATE_DAILY","PERIOD"]
[381112315,1756050638842,-214.32,0.000137,2]
[381112316,1756050638851,-214.32,0.000137,2]
[381112317,1756050638861,-3402.58144,0.0001382,2]
[381112318,1756050638870,-484.49835406,0.0001401,2]
[381112319,1756050638880,-433.0,0.00014159,2]
[381112320,1756050638890,-2000.0,0.00014164,2]
[381112321,1756050638900,-21626.55382155,0.00014233,2]
[381112322,1756050638909,-14035.65757786,0.00014233,2]
[381112323,1756050638919,-1000.0,0.00014313,2]
[381112324,1756050638928,-3402.58144,0.0001432,2]
[381112325,1756050638938,-587.0,0.00014341,2]
[381112326,1756050638948,-10117.48027549,0.0001439,2]
[381112327,1756050638957,-431.0,0.00014397,2]
[381112328,1756050638967,-150.0,0.00014567,2]
[381112329,1756050638977,-250.0,0.00014815,2]
[381112330,1756050638986,-185.00959499,0.00015195,2]
[381112331,1756050638996,-21626.55382155,0.00015399,2]
[381112332,1756050639007,-14035.65757786,0.00015399,2]
[381112333,1756050639017,-234459.2,0.000154,2]
[381112334,1756050639027,-538.0,0.00015456,2]
[381112335,1756050639036,-1000.0,0.00015745,2]
[381112336,1756050639046,-270.0,0.00015745,2]
[381112337,1756050639056,-421.4,0.00015886,2]
[381112338,1756050639071,-484.49835406,0.00016119,2]
[381112339,1756050639081,-666.0,0.00016438,3]
[381112340,1756050639091,-21626.55382155,0.00016566,2]
[381112341,1756050639100,-1503.41325696,0.00016566,2]
[381112342,1756050639115,-471.20000252,0.00016566,2]
[381112343,1756050639165,-2929.848,0.00016566,2]
[381112344,1756050639177,-4819.87818173,0.00016566,2]
[381112349,1756050640450,-1263.45825904,0.00011988,2]
[381112350,1756050640462,-1580.84624964,0.00011988,2]
[381112351,1756050641131,-3919.89162342,0.00011988,2]
[381112352,1756050641148,-35266.1617898,0.00011988,2]
[381112353,1756050641158,-2337.16445532,0.00012745,2]
[381112354,1756050641172,-4766.15403991,0.00012745,2]
[381112355,1756050641203,-712.5,0.00012745,2]
[381112356,1756050641215,-1562.42199897,0.00012745,2]
[381112357,1756050641224,-2092.5683033,0.00012913,2]
[381112358,1756050641234,-166.13773931,0.00014642,2]
[381112359,1756050641243,-4311.31813665,0.00016566,2]
[381112360,1756050641253,-185.00959499,0.00016848,2]
[381112361,1756050641264,-1500.0,0.000169,6]
[381112362,1756050641274,-500.0,0.00017068,2]
[381112363,1756050641283,-1000.0,0.00017176,2]
[381112364,1756050641292,-1559.80535963,0.00017733,2]
[381112365,1756050641303,-20066.74846192,0.00017733,2]
[381112366,1756050641313,-14035.65757786,0.00017733,2]
[381112367,1756050641322,-6812.09,0.00018,2]
[381112368,1756050641331,-484.49835406,0.00018229,2]
[381112369,1756050641341,-34586.20160616,0.000184,2]
[381112370,1756050641352,-5371.08553403,0.000184,2]
[381112371,1756050641363,-1277.29231165,0.000184,2]
[381112372,1756050641390,-1724.4532152,0.000184,2]
[381112373,1756050641401,-1244.78265356,0.000184,2]
[381112374,1756050641412,-982.43533863,0.000184,2]
[381112375,1756050642888,-315.22110671,0.00016566,2]
[381112376,1756050642898,-3554.37889329,0.000184,2]
[381112377,1756050642926,-1173.0414,0.000184,2]
[381112378,1756050642937,-2507.94453858,0.000184,2]
[381112379,1756050642950,-10228.57286658,0.000184,2]
[381112381,1756050643020,-400.71904,0.000184,2]
[381112383,1756050643031,-602.37999995,0.000184,2]
[381112385,1756050643042,-170805.91260237,0.000184,2]
[381112387,1756050643051,-570.11335254,0.00018451,2]
[381112389,1756050643060,-185.00959499,0.00018501,2]
[381112390,1756050643073,-21626.55382155,0.000189,2]
[381112391,1756050643082,-14035.65757786,0.000189,2]
[381112392,1756050643091,-150.0,0.00018999,2]
[381112393,1756050643100,-253967.75121981,0.00019,2]
[381112394,1756050643110,-151.0,0.00019,2]
[381112395,1756050643120,-151.0,0.00019,2]
[381112396,1756050643129,-151.0,0.00019,2]
[381112397,1756050643140,-151.0,0.00019,2]
[381112398,1756050643149,-151.0,0.00019,2]
[381112399,1756050643158,-478.53165,0.00019,2]
[381112400,1756050643167,-283.62615,0.00019,2]
[381112401,1756050643176,-321.721032,0.00019,2]
[381112402,1756050643186,-478.53165,0.00019,2]
[381112403,1756050643195,-151.0,0.00019,2]
[381112404,1756050643204,-283.62615,0.00019,2]
[381112405,1756050643214,-321.721032,0.00019,2]
[381112406,1756050643224,-478.53165,0.00019,2]
[381112407,1756050643233,-283.62615,0.00019,2]
[381112408,1756050643243,-321.721032,0.00019,2]
[381112409,1756050643252,-478.53165,0.00019,2]
[381112410,1756050643262,-283.62615,0.00019,2]
[381112411,1756050643271,-321.721032,0.00019,2]
[381112412,1756050643280,-453.765705,0.00019,2]
[381112413,1756050643289,-453.765705,0.00019,2]
[381112414,1756050643299,-453.765705,0.00019,2]
[381112415,1756050643308,-453.765705,0.00019,2]
[381112416,1756050643317,-151.0,0.00019,2]
[381112417,1756050643326,-151.0,0.00019,2]
[381112418,1756050643335,-151.0,0.00019,2]
[381112419,1756050643344,-226.634741,0.00019,2]
[381112420,1756050643354,-151.0,0.00019,2]
[381112421,1756050643363,-2915.826686,0.00019,2]
[381112422,1756050643372,-151.0,0.00019,2]
[381112423,1756050643382,-2915.826686,0.00019,2]
[381112424,1756050643391,-2915.826686,0.00019,2]
[381112425,1756050643400,-2915.826686,0.00019,2]
[381112426,1756050643409,-151.0,0.00019,2]
[381112427,1756050643418,-151.0,0.00019,2]
[381112428,1756050643427,-151.0,0.00019,2]
[381112429,1756050643436,-151.0,0.00019,2]
[381112430,1756050643445,-151.0,0.00019,2]
[381112431,1756050643455,-159.205608,0.00019,2]
[381112432,1756050643464,-151.0,0.00019,2]
[381112433,1756050643473,-151.0,0.00019,2]
[381112434,1756050643482,-159.205608,0.00019,2]
[381112435,1756050643491,-151.0,0.00019,2]
[381112436,1756050643500,-151.0,0.00019,2]
[381112437,1756050643509,-159.205608,0.00019,2]
[381112438,1756050643519,-151.0,0.00019,2]
[381112439,1756050643528,-151.0,0.00019,2]
[381112440,1756050643538,-159.205608,0.00019,2]
[381112441,1756050643547,-151.0,0.00019,2]
[381112442,1756050643556,-151.933158,0.00019,2]
[381112443,1756050643565,-193.096376,0.00019,2]
[381112444,1756050643574,-151.0,0.00019,2]
[381112445,1756050643583,-151.0,0.00019,2]
[381112446,1756050643592,-151.0,0.00019,2]
[381112447,1756050643602,-151.0,0.00019,2]
[381112448,1756050643611,-151.0,0.00019,2]
[381112449,1756050643619,-151.0,0.00019,2]
[381112450,1756050643629,-151.0,0.00019,2]
[381112451,1756050643638,-204.220309,0.00019,2]
[381112452,1756050643647,-151.0,0.00019,2]
[381112453,1756050643656,-204.220309,0.00019,2]
[381112454,1756050643665,-204.220309,0.00019,2]
[381112455,1756050643675,-405.631907,0.00019,2]
[381112456,1756050643684,-405.631907,0.00019,2]
[381112457,1756050643693,-204.220309,0.00019,2]
[381112458,1756050643703,-405.631907,0.00019,2]
[381112459,1756050643712,-405.631907,0.00019,2]
[381112460,1756050643721,-161.628615,0.00019,2]
[381112461,1756050643730,-151.0,0.00019,2]
[381112462,1756050643739,-161.628615,0.00019,2]
[381112463,1756050643749,-151.0,0.00019,2]
[381112464,1756050643758,-275.751883,0.00019,2]
[381112465,1756050643768,-161.628615,0.00019,2]
[381112466,1756050643777,-151.0,0.00019,2]
[381112467,1756050643786,-151.0,0.00019,2]
[381112468,1756050643795,-161.628615,0.00019,2]
[381112469,1756050643804,-151.0,0.00019,2]
[381112470,1756050643814,-264.896108,0.00019,2]
[381112471,1756050643823,-151.0,0.00019,2]
[381112472,1756050643833,-151.0,0.00019,2]
[381112473,1756050643842,-151.0,0.00019,2]
[381112474,1756050643852,-151.0,0.00019,2]
[381112475,1756050643862,-151.0,0.00019,2]
[381112476,1756050643871,-151.0,0.00019,2]
[381112477,1756050643880,-151.0,0.00019,2]
[381112478,1756050643890,-151.0,0.00019,2]
[381112479,1756050643901,-151.0,0.00019,2]
[381112480,1756050643911,-151.0,0.00019,2]
[381112481,1756050643920,-151.0,0.00019,2]
[381112482,1756050643930,-151.0,0.00019,2]
[381112483,1756050643940,-151.0,0.00019,2]
[381112484,1756050643949,-151.0,0.00019,2]
[381112485,1756050643960,-281.919863,0.00019,2]
[381112486,1756050643969,-281.919863,0.00019,2]
[381112487,1756050643978,-281.919863,0.00019,2]
[381112488,1756050643988,-281.919863,0.00019,2]
[381112489,1756050643997,-151.0,0.00019,2]
[381112490,1756050644007,-151.0,0.00019,2]
[381112491,1756050644017,-151.0,0.00019,2]
[381112492,1756050644026,-151.0,0.00019,2]
[381112493,1756050644035,-151.0,0.00019,2]
[381112494,1756050644044,-167.146781,0.00019,2]
[381112495,1756050644054,-167.146781,0.00019,2]
[381112496,1756050644067,-151.0,0.00019,2]
[381112497,1756050644077,-151.0,0.00019,2]
[381112498,1756050644086,-151.0,0.00019,2]
[381112499,1756050644095,-167.146781,0.00019,2]
[381112500,1756050644105,-151.0,0.00019,2]
[381112501,1756050644113,-151.0,0.00019,2]
[381112502,1756050644123,-172.362191,0.00019,2]
[381112503,1756050644132,-151.0,0.00019,2]
[381112504,1756050644142,-172.362191,0.00019,2]
[381112505,1756050644152,-151.0,0.00019178,2]
[381112506,1756050644161,-153.0,0.00019505,2]
[381112507,1756050644170,-153.0,0.00019505,2]
[381112508,1756050644179,-245.66078865,0.00019726,2]
[381112509,1756050644189,-178.76,0.00019863,2]
[381112510,1756050644198,-1553.0,0.00019946,2]
[381112511,1756050644208,-200.0,0.0002,7]
[381112512,1756050644217,-4000.0,0.0002,4]
[381112513,1756050644228,-21626.55382155,0.00020066,2]
[381112514,1756050644238,-14035.65757786,0.00020066,2]
[381112515,1756050644247,-185.00959499,0.00020154,2]
[381112516,1756050644257,-178.44,0.00020187,2]
[381112517,1756050644266,-358.15787756,0.0002019,2]
[381112518,1756050644276,-46306.30607923,0.000202,2]
[381112525,1756050645825,-6209.11581217,0.00015356,2]
[381112526,1756050645835,-166.13773931,0.00016019,2]
[381112527,1756050645845,-6209.11581217,0.00017017,2]
[381112528,1756050645854,-6209.11581217,0.00018678,2]
[381112529,1756050645863,-172.362191,0.00019,2]
[381112530,1756050645872,-172.362191,0.00019,2]
[381112531,1756050645881,-1856.8954199,0.000202,2]
[381112532,1756050645924,-1187.5330515,0.000202,2]
[381114057,1756051619484,3314.3059705,0.00028,120]
[381114058,1756051626288,1211.48672308,0.00028,120]
[381114060,1756051635504,22039.68424369,0.00028,120]
[381114070,1756051832366,-406.51973489,0.00011798,2]
[381114073,1756051832378,-93.48026511,0.00011798,2]
[381114074,1756051832387,-200.64899192,0.00011896,2]
[381114075,1756051832398,-999.35100808,0.00011896,2]
[381114076,1756051832408,-300.0,0.00011897,2]
[381114077,1756051832417,-194.0,0.00011897,2]
[381114078,1756051832426,-300.0,0.00011897,2]
[381114079,1756051832435,-500.0,0.00011898,2]
[381114081,1756051832444,-500.0,0.00011898,2]
[381114084,1756051832453,-500.0,0.00011898,2]
[381114085,1756051832463,-500.0,0.00011898,2]
[381114087,1756051832472,-500.0,0.00011898,2]
[381114089,1756051832481,-300.0,0.00012978,2]
[381114091,1756051832490,-250.0,0.00012978,2]
[381114093,1756051832499,-300.0,0.00012978,2]
[381114095,1756051832509,-21.77771667,0.00013086,2]
[381114098,1756051832521,-1658.22228333,0.00013086,2]
[381114100,1756051832531,-181.12,0.00013699,2]
[381114102,1756051832540,-720.0,0.00014394,2]
[381114104,1756051832552,-150.0,0.00016438,2]
[381114105,1756051832561,-337.12,0.00016981,2]
[381114107,1756051832571,-500.0,0.00017288,2]
[381114109,1756051832580,-1500.0,0.000173,2]
[381114111,1756051832590,-1522.0,0.000173,2]
[381114113,1756051832600,-212.0,0.000181,2]
[381114115,1756051832609,-151.0,0.00018224,2]
[381114117,1756051832617,-666.0,0.00019005,3]
[381114119,1756051832627,-300.0,0.00019178,4]
[381114121,1756051832637,-207.0,0.0001928,2]
[381114123,1756051832646,-300.0,0.00019573,2]
[381114124,1756051832655,-34762.8390594,0.00019574,2]
[381114125,1756051832664,-3481.6491957,0.00019574,2]
[381114126,1756051832674,-178.76,0.00019863,2]
[381114127,1756051832683,-2000.0,0.0002,2]
[381114128,1756051832692,-2000.0,0.0002,2]
[381114129,1756051832701,-292.55203988,0.00020049,2]
[381114130,1756051832710,-322.6107,0.00020049,2]
[381114131,1756051832719,-695.39793187,0.00020049,2]
[381114132,1756051832728,-267.46074303,0.00020049,2]
[381114133,1756051832737,-160.0,0.00020049,2]
[381114134,1756051832747,-5199.43684444,0.00020049,2]
[381114135,1756051832756,-185.88953192,0.00020049,2]
[381114136,1756051832765,-300.0,0.00020049,2]
[381114137,1756051832775,-167.91934601,0.00020049,2]
[381114138,1756051832784,-1000.0,0.00020049,2]
[381114139,1756051832794,-1000.0,0.00020049,2]
[381114140,1756051832803,-1000.0,0.00020049,2]
[381114141,1756051832812,-1000.0,0.00020049,2]
[381114142,1756051832821,-1000.0,0.00020049,2]
[381114143,1756051832831,-1000.0,0.00020049,2]
[381114144,1756051832840,-1000.0,0.00020049,2]
[381114145,1756051832849,-1000.0,0.00020049,2]
[381114146,1756051832859,-1000.0,0.00020049,2]
[381114147,1756051832868,-151.0,0.00020049,2]
[381114148,1756051832877,-1000.0,0.00020049,2]
[381114149,1756051832886,-152.06347632,0.00020049,2]
[381114150,1756051832895,-1000.0,0.00020049,2]
[381114151,1756051832904,-1000.0,0.00020049,2]
[381114152,1756051832913,-596.32081876,0.00020049,2]
[381114153,1756051832922,-190.39,0.00020061,2]
[381114154,1756051832932,-5391.81600769,0.00020104,2]
[381114155,1756051832941,-499.99,0.00020145,2]
[381114156,1756051832950,-3605.67,0.00020145,2]
[381114157,1756051832959,-8194.38,0.00020145,2]
[381114158,1756051832969,-1679.8,0.00020145,2]
[381114159,1756051832979,-2482.2,0.00020145,2]
[381114160,1756051832989,-9999.99,0.00020145,2]
[381114161,1756051832998,-1568.76,0.00020145,2]
[381114162,1756051833009,-432.46,0.00020145,2]
[381114163,1756051833019,-11324.05,0.00020145,2]
[381114164,1756051833029,-150.99,0.00020145,2]
[381114165,1756051833039,-299.99,0.00020145,7]
[381114166,1756051833050,-150.99,0.00020145,2]
[381114167,1756051833060,-9999.99,0.00020145,2]
[381114168,1756051833070,-999.99,0.00020145,2]
[381114169,1756051833081,-5591.31319997,0.00020159,2]
[381114170,1756051833091,-166.13011689,0.0002018,2]
[381114171,1756051833100,-181.12,0.00020187,2]
[381114172,1756051833110,-2510.3322203,0.00020198,2]
[381114173,1756051833119,-8517.3897509,0.00020198,2]
[381114174,1756051833129,-200.0,0.000202,2]
[381114175,1756051833139,-417.01736,0.000202,2]
[381114176,1756051833149,-430.591546,0.000202,2]
[381114177,1756051833159,-2804.99787959,0.00020214,2]
[381114178,1756051833169,-484.49835406,0.00020338,2]
[381114179,1756051833179,-203.0,0.0002047,2]
[381114180,1756051833188,-2809.78,0.00020547,2]
[381114181,1756051833198,-7756.6378465,0.00020571,2]
[381114182,1756051833207,-1500.0,0.000207,2]
[381114183,1756051833217,-1730.7398449,0.00020793,2]
[381114184,1756051833227,-173.3411065,0.00020793,2]
[381114185,1756051833236,-6055.76589469,0.00020851,2]
[381114186,1756051833246,-216.0,0.00020941,3]
[381114187,1756051833257,-19999.99,0.00020951,2]
[381114188,1756051833266,-6055.76589462,0.00021019,2]
[381114189,1756051833276,-166.13011689,0.00021136,2]
[381114190,1756051833286,-6055.76589462,0.00021187,2]
[381114191,1756051833296,-6055.76589462,0.00021356,2]
[381114192,1756051833306,-1700.0,0.00021412,2]
[381114193,1756051833315,-334.5472959,0.00021418,2]
[381114194,1756051833325,-277.35679052,0.00021418,2]
[381114195,1756051833334,-160.0,0.00021418,2]
[381114196,1756051833344,-200.0,0.000215,7]
[381114197,1756051833353,-6055.76589462,0.00021524,2]
[381114198,1756051833363,-500.0,0.000216,7]
[381114199,1756051833372,-600.0,0.00021616,2]
[381114200,1756051833381,-162.83341251,0.00021616,2]
[381114201,1756051833391,-199.0,0.0002165,2]
[381114202,1756051833400,-186.45032141,0.00021678,2]
[381114203,1756051833410,-6055.76589462,0.00021692,2]
[381114204,1756051833419,-800.0,0.000217,7]
[381114205,1756051833429,-212.11701231,0.00021758,2]
[381114206,1756051833439,-458.63746581,0.00021761,2]
[381114207,1756051833448,-160.0,0.00021761,2]
[381114208,1756051833457,-1100.0,0.000218,7]
[381114209,1756051833467,-162.08314676,0.00021817,2]
[381114210,1756051833477,-1254.97,0.00021833,2]
[381114211,1756051833487,-450.92642845,0.00021859,2]
[381114212,1756051833497,-448.10906008,0.00021859,2]
[381114213,1756051833507,-6055.76589462,0.0002186,2]
[381114214,1756051833517,-524.0,0.0002189,2]
[381114215,1756051833527,-1300.0,0.000219,7]
[381114216,1756051833537,-179.07893878,0.00021907,2]
[381114217,1756051833550,-1000.0,0.00021913,2]
[381114218,1756051833560,-1000.0,0.00021913,2]
[381114219,1756051833570,-151.0,0.00021914,2]
[381114220,1756051833579,-283565.86621124,0.00021914,2]
[381114221,1756051833593,-86161.2142028,0.00021914,2]
[381114222,1756051833616,-1578.78552167,0.00021914,2]
[381114223,1756051833629,-264.3296,0.00021914,2]
[381114224,1756051833699,-1190.03079999,0.00021914,2]
[381114225,1756051833711,-8439.68307856,0.00021914,2]
[381114228,1756051837931,-3303.2,0.00021914,2]
[381114229,1756051838060,-1682.2401957,0.00021914,2]
[381114230,1756051838135,-333.794745,0.00021914,2]
[381114333,1756051839919,-500.0,0.0002057,2]
[381114334,1756051839929,-73.674504,0.0002057,2]
[381114335,1756051840093,-135.48741792,0.0002057,2]
[381114336,1756051840104,-269.30791429,0.0002057,2]
[381114337,1756051840114,-643.70466958,0.0002057,2]
[381114338,1756051840125,-16505.17142911,0.00021914,2]
[381114339,1756051840135,-215.29577301,0.00021914,2]
[381114340,1756051840145,-3000.01,0.00021916,2]
[381114341,1756051840154,-1000.0,0.00021916,2]
[381114342,1756051840164,-1000.0,0.00021916,2]
[381114343,1756051840173,-171.95658663,0.00021916,2]
[381114344,1756051840184,-828.04341337,0.00021916,2]
[381114345,1756051840194,-151.0,0.00021917,2]
[381114346,1756051840204,-202.769671,0.00021917,2]
[381114347,1756051840213,-400.0,0.00021917,2]
[381114348,1756051840223,-400.0,0.00021917,2]
[381114350,1756051840232,-400.0,0.00021917,2]
[381114352,1756051840242,-400.0,0.00021917,2]
[381114354,1756051840252,-400.0,0.00021917,2]
[381114355,1756051840262,-400.0,0.00021917,2]
[381114356,1756051840272,-400.0,0.00021917,2]
[381114357,1756051840281,-400.0,0.00021917,2]
[381114359,1756051840291,-400.0,0.00021917,2]
[381114361,1756051840301,-385.11372846,0.00021917,2]
[381114363,1756051840313,-14.88627154,0.00021917,2]
[381114365,1756051840322,-401.71257698,0.00021917,2]
[381114366,1756051840330,-400.0,0.00021917,2]
[381114367,1756051840339,-400.0,0.00021917,2]
[381114368,1756051840348,-21.43335484,0.00021917,2]
[381114370,1756051840417,-378.56664516,0.00021917,2]
[381114371,1756051840427,-400.0,0.00021917,2]
[381114372,1756051840437,-400.0,0.00021917,2]
[381114373,1756051840447,-400.0,0.00021917,2]
[381114374,1756051840457,-269.53335493,0.00021917,2]
[381114389,1756051843329,-130.46664507,0.00021917,2]
[381114390,1756051843339,-400.0,0.00021917,2]
[381114391,1756051843349,-400.0,0.00021917,2]
[381114392,1756051843359,-400.0,0.00021917,2]
[381114393,1756051843370,-400.0,0.00021917,2]
[381114394,1756051843379,-500.0,0.00021917,2]
[381114395,1756051843389,-400.0,0.00021917,2]
[381114397,1756051843399,-400.0,0.00021917,2]
[381114399,1756051843408,-450.0,0.00021917,6]
[381114401,1756051843418,-400.0,0.00021917,2]
[381114403,1756051843427,-400.0,0.00021917,2]
[381114405,1756051843437,-400.0,0.00021917,2]
[381114407,1756051843447,-400.0,0.00021917,2]
[381114409,1756051843457,-400.0,0.00021917,2]
[381114411,1756051843466,-400.0,0.00021917,2]
[381114413,1756051843476,-400.0,0.00021917,2]
[381114415,1756051843486,-400.0,0.00021917,2]
[381114417,1756051843496,-400.0,0.00021917,2]
[381114419,1756051843506,-400.0,0.00021917,2]
[381114420,1756051843516,-400.0,0.00021917,2]
[381114421,1756051843525,-400.0,0.00021917,2]
[381114422,1756051843535,-400.0,0.00021917,2]
[381114423,1756051843547,-400.0,0.00021917,2]
[381114424,1756051843559,-400.0,0.00021917,2]
[381114427,1756051843569,-400.0,0.00021917,2]
[381114429,1756051843579,-400.0,0.00021917,2]
[381114431,1756051843590,-155.368258,0.00021917,2]
[381114432,1756051843600,-400.0,0.00021917,2]
[381114433,1756051843611,-400.0,0.00021917,2]
[381114434,1756051843624,-500.0,0.00021917,2]
[381114435,1756051843640,-500.0,0.00021917,2]
[381114436,1756051843650,-500.0,0.00021917,2]
[381114437,1756051843660,-500.0,0.00021917,2]
[381114438,1756051843670,-500.0,0.00021917,2]
[381114439,1756051843680,-500.0,0.00021917,2]
[381114440,1756051843690,-500.0,0.00021917,2]
[381114441,1756051843699,-500.0,0.00021917,2]
[381114442,1756051843710,-500.0,0.00021917,2]
[381114443,1756051843721,-400.0,0.00021917,2]
[381114444,1756051843732,-721.7,0.00021917,2]
[381114445,1756051843742,-400.0,0.00021917,2]
[381114446,1756051843753,-400.0,0.00021917,2]
[381114447,1756051843763,-400.0,0.00021917,2]
[381114448,1756051843774,-400.0,0.00021917,2]
[381114449,1756051843784,-400.0,0.00021917,2]
[381114450,1756051843794,-400.0,0.00021917,2]
[381114451,1756051843804,-400.0,0.00021917,2]
[381114452,1756051843814,-560.04,0.00021917,2]
[381114453,1756051843824,-300.0,0.00021917,2]
[381114454,1756051843834,-400.0,0.00021917,2]
[381114455,1756051843843,-601.57,0.00021917,2]
[381114456,1756051843852,-400.0,0.00021917,2]
[381114457,1756051843862,-400.0,0.00021917,2]
[381114458,1756051843871,-400.0,0.00021917,2]
[381114459,1756051843881,-400.0,0.00021917,2]
[381114460,1756051843890,-400.0,0.00021917,2]
[381114461,1756051843899,-1162.56,0.00021917,2]
[381114462,1756051843910,-417.34,0.00021917,2]
[381114463,1756051843920,-628.25,0.00021917,2]
[381114464,1756051843929,-400.0,0.00021917,2]
[381114465,1756051843938,-400.0,0.00021917,2]
[381114466,1756051843947,-1112.4,0.00021917,2]
[381114467,1756051843957,-400.0,0.00021917,2]
[381114468,1756051843966,-400.0,0.00021917,2]
[381114469,1756051843976,-400.0,0.00021917,2]
[381114470,1756051843985,-400.0,0.00021917,2]
[381114471,1756051843994,-719.33,0.00021917,2]
[381114472,1756051844004,-1035.57,0.00021917,2]
[381114473,1756051844014,-400.0,0.00021917,2]
[381114474,1756051844023,-986.53,0.00021917,2]
[381114475,1756051844032,-400.0,0.00021917,2]
[381114476,1756051844041,-400.0,0.00021917,2]
[381114477,1756051844051,-776.99,0.00021917,2]
[381114478,1756051844060,-400.0,0.00021917,2]
[381114479,1756051844069,-400.0,0.00021917,2]
[381114480,1756051844078,-400.0,0.00021917,2]
[381114481,1756051844087,-400.0,0.00021917,2]
[381114482,1756051844098,-614.05,0.00021917,2]
[381114483,1756051844108,-292.81747729,0.00021917,2]
[381114484,1756051844117,-400.0,0.00021917,2]
[381114485,1756051844127,-400.0,0.00021917,2]
[381114486,1756051844137,-400.0,0.00021917,2]
[381114487,1756051844147,-400.0,0.00021917,2]
[381114488,1756051844156,-878.74,0.00021917,2]
[381114489,1756051844166,-472.03,0.00021917,2]
[381114490,1756051844176,-151.0,0.00021917,2]
[381114491,1756051844185,-400.0,0.00021917,2]
[381114492,1756051844195,-400.0,0.00021917,2]
[381114493,1756051844205,-151.0,0.00021917,2]
[381114494,1756051844214,-243.579848,0.00021917,2]
[381114495,1756051844224,-151.0,0.00021917,2]
[381114496,1756051844235,-400.0,0.00021917,2]
[381114497,1756051844244,-500.0,0.00021917,2]
[381114498,1756051844258,-555.68,0.00021917,2]
[381114499,1756051844272,-500.0,0.00021917,2]
[381114500,1756051844282,-500.0,0.00021917,2]
[381114501,1756051844291,-497.34,0.00021917,2]
[381114502,1756051844300,-500.0,0.00021917,2]
[381114503,1756051844309,-500.0,0.00021917,2]
[381114504,1756051844324,-500.0,0.00021917,2]
[381114505,1756051844337,-500.0,0.00021917,2]
[381114506,1756051844351,-500.0,0.00021917,2]
[381114507,1756051844361,-400.0,0.00021917,2]
[381114508,1756051844370,-500.0,0.00021917,2]
[381114509,1756051844380,-980.85,0.00021917,2]
[381114510,1756051844389,-1202.24,0.00021917,2]
[381114511,1756051844398,-400.0,0.00021917,2]
[381114512,1756051844407,-151.0,0.00021917,2]
[381114513,1756051844416,-576.9,0.00021917,2]
[381114514,1756051844425,-400.0,0.00021917,2]
[381114515,1756051844434,-151.0,0.00021917,2]
[381114516,1756051844443,-151.0,0.00021917,2]
[381114517,1756051844452,-151.0,0.00021917,2]
[381114518,1756051844461,-151.0,0.00021917,2]
[381114519,1756051844471,-400.0,0.00021917,2]
[381114520,1756051844480,-151.0,0.00021917,2]
[381114521,1756051844489,-456.57,0.00021917,2]
[381114522,1756051844499,-1026.38,0.00021917,2]
[381114523,1756051844508,-400.0,0.00021917,2]
[381114524,1756051844518,-400.0,0.00021917,2]
[381114525,1756051844527,-151.0,0.00021917,2]
[381114526,1756051844536,-400.0,0.00021917,2]
[381114527,1756051844546,-400.0,0.00021917,2]
[381114528,1756051844558,-230.097208,0.00021917,2]
[381114529,1756051844567,-508.15,0.00021917,2]